fUSD/lending_fUSD_20250226
["ID","MTS","AMOUNT","RATE_DAILY","PERIOD"]
[354567915,1740577845819,-500.0,0.0003863,14]
[354567916,1740577845829,-924.52,0.0003863,14]
[354567917,1740577845839,-632.95,0.0003863,14]
[354567918,1740577845849,-500.0,0.0003863,14]
[354567919,1740577845863,-507.00001725,0.0003863,14]
[354567920,1740577845874,-500.0,0.0003863,14]
[354567921,1740577845883,-766.77,0.0003863,14]
[354567922,1740577845894,-528.99645323,0.0003863,14]
[354567923,1740577845904,-500.0,0.0003863,14]
[354567924,1740577845914,-500.0,0.0003863,14]
[354567925,1740577845923,-500.0,0.0003863,14]
[354567926,1740577845933,-500.0,0.0003863,14]
[354567927,1740577845943,-500.0,0.0003863,14]
[354567928,1740577845952,-1251.19,0.0003863,14]
[354567929,1740577845962,-418.49754807,0.0003863,14]
[354567930,1740577845973,-500.0,0.0003863,14]
[354567931,1740577845982,-508.9574144,0.0003863,14]
[354567932,1740577845992,-3231.91,0.0003863,14]
[354567933,1740577846001,-500.0,0.0003863,14]
[354567934,1740577846012,-448.99576791,0.0003863,14]
[354567935,1740577846022,-3553.83,0.0003863,14]
[354567936,1740577846031,-1452.5,0.0003863,14]
[354567937,1740577846041,-3541.32,0.0003863,14]
[354567938,1740577846051,-3686.64,0.0003863,14]
[354567939,1740577846060,-1345.95,0.0003863,14]
[354567940,1740577846071,-510.79,0.0003863,14]
[354567942,1740577846080,-495.19438091,0.0003863,14]
[354567943,1740577846090,-500.0,0.0003863,14]
[354567944,1740577846100,-290.0,0.0003863,14]
[354567945,1740577846111,-500.0,0.00038673,2]
[354567946,1740577846121,-167.46,0.00038699,2]
[354567947,1740577846131,-500.0,0.000387,14]
[354567948,1740577846141,-800.0,0.000388,14]
[354567949,1740577846151,-357.2539389,0.00038803,12]
[354567950,1740577846160,-4656.35266776,0.00038804,2]
[354567951,1740577846170,-155.85666796,0.00038892,2]
[354567952,1740577846180,-1100.0,0.000389,14]
[354567953,1740577846190,-500.0,0.00038901,14]
[354567954,1740577846199,-500.0,0.00038901,14]
[354567955,1740577846209,-760.91,0.00038901,14]
[354567956,1740577846219,-958.67,0.00038901,14]
[354567957,1740577846228,-500.0,0.00038901,14]
[354567958,1740577846238,-500.0,0.00038901,14]
[354567959,1740577846247,-928.51,0.00038901,14]
[354567960,1740577846256,-500.0,0.00038901,14]
[354567961,1740577846266,-500.0,0.00038901,14]
[354567962,1740577846276,-664.15,0.00038901,14]
[354567963,1740577846285,-500.0,0.00038901,14]
[354567964,1740577846295,-500.0,0.00038901,14]
[354567965,1740577846305,-500.0,0.00038901,14]
[354567966,1740577846314,-500.0,0.00038901,14]
[354567967,1740577846324,-685.06,0.00038901,14]
[354567968,1740577846333,-1165.71,0.00038901,14]
[354567969,1740577846343,-500.0,0.00038901,14]
[354567970,1740577846352,-860.05,0.00038901,14]
[354567972,1740577846363,-500.0,0.00038901,14]
[354567973,1740577846373,-1547.06,0.00038901,14]
[354567974,1740577846383,-554.12,0.00038901,14]
[354567975,1740577846393,-493.52708199,0.00038901,2]
[354567976,1740577846403,-500.0,0.00038901,14]
[354567977,1740577846415,-500.0,0.00038901,14]
[354567978,1740577846426,-1152.56,0.00038901,14]
[354567979,1740577846435,-500.0,0.00038901,14]
[354567980,1740577846445,-570.0,0.00038901,14]
[354567981,1740577846454,-626.17,0.00038901,14]
[354567982,1740577846464,-1158.16,0.00038901,14]
[354567983,1740577846473,-952.68,0.00038901,14]
[354567984,1740577846483,-565.43805478,0.00038901,14]
[354567985,1740577846493,-508.1,0.00038901,14]
[354567986,1740577846502,-968.8,0.00038901,14]
[354567987,1740577846511,-2419.29,0.00038901,14]
[354567988,1740577846521,-442.55330852,0.00038901,14]
[354567989,1740577846530,-500.0,0.00038901,14]
[354567990,1740577846540,-1719.14,0.00038901,14]
[354567991,1740577846552,-500.0,0.00038901,14]
[354567992,1740577846772,-682.591872,0.00038901,14]
[354567993,1740577846783,-500.0,0.00038901,14]
[354567994,1740577846793,-500.0,0.00038901,14]
[354567995,1740577846803,-500.0,0.00038901,14]
[354567996,1740577846812,-500.0,0.00038901,14]
[354567997,1740577846823,-1795.0,0.00038901,14]
[354567998,1740577846833,-500.0,0.00038901,14]
[354567999,1740577846842,-1645.33012,0.00038901,14]
[354568000,1740577846854,-714.11,0.00038901,14]
[354568001,1740577846866,-1111.56,0.00038901,14]
[354568002,1740577846876,-500.0,0.00038901,14]
[354568003,1740577846885,-1878.05,0.00038901,14]
[354568004,1740577846895,-500.0,0.00038901,14]
[354568005,1740577846905,-500.0,0.00038901,14]
[354568006,1740577846915,-667.63,0.00038901,14]
[354568007,1740577846925,-500.0,0.00038901,14]
[354568008,1740577846935,-526.2753987,0.00038901,14]
[354568009,1740577846945,-500.0,0.00038901,14]
[354568010,1740577846955,-2722.32,0.00038901,14]
[354568011,1740577847264,-7145.37,0.00038901,14]
[354568012,1740577847280,-1927.34,0.00038901,14]
[354568013,1740577847289,-509.80018505,0.00038901,14]
[354568014,1740577847299,-158.96985337,0.00038901,14]
[354568015,1740577847309,-500.0,0.00038901,14]
[354568016,1740577847318,-1008.2,0.00038901,14]
[354568017,1740577847328,-650.25,0.00038901,14]
[354568018,1740577847337,-2009.61,0.00038901,14]
[354568019,1740577847347,-2014.66,0.00038901,14]
[354568020,1740577847357,-500.0,0.00038901,14]
[354568021,1740577847367,-3098.29,0.00038901,14]
[354568022,1740577847377,-732.93,0.00038901,14]
[354568023,1740577847387,-500.0,0.00038901,14]
[354568024,1740577847397,-938.98,0.00038901,14]
[354568025,1740577847406,-1479.36,0.00038901,14]
[354568026,1740577847416,-3568.1,0.00038901,14]
[354568027,1740577847426,-3257.25,0.00038901,14]
[354568028,1740577847435,-669.26,0.00038901,14]
[354568029,1740577847444,-645.47,0.00038901,14]
[354568030,1740577847454,-3076.86,0.00038901,14]
[354568031,1740577847464,-1253.24,0.00038901,14]
[354568032,1740577847473,-2384.03,0.00038901,14]
[354568033,1740577847483,-500.0,0.00038901,14]
[354568034,1740577847493,-500.0,0.00038901,14]
[354568035,1740577847503,-431.55360198,0.00038901,14]
[354568036,1740577847512,-1151.84,0.00038901,14]
[354568037,1740577847522,-500.0,0.00038901,14]
[354568038,1740577847531,-1460.66,0.00038901,14]
[354568039,1740577847541,-6184.91,0.00038901,14]
[354568040,1740577847550,-509.43978018,0.00038901,14]
[354568041,1740577847560,-200.0,0.00038901,7]
[354568042,1740577847571,-500.0,0.00038901,14]
[354568043,1740577847580,-771.66,0.00038901,14]
[354568044,1740577847590,-2808.99,0.00038901,14]
[354568045,1740577847600,-611.10826681,0.00038901,14]
[354568046,1740577847610,-3678.19,0.00038901,14]
[354568047,1740577847621,-827.66,0.00038901,14]
[354568048,1740577847631,-500.0,0.00038901,14]
[354568049,1740577847641,-1437.84,0.00038901,14]
[354568050,1740577847651,-287.92107377,0.00038901,14]
[354568051,1740577847660,-5109.15,0.00038901,14]
[354568052,1740577847669,-1209.32,0.00038901,14]
[354568053,1740577847679,-500.0,0.00038901,14]
[354568054,1740577847688,-500.0,0.00038901,14]
[354568055,1740577847698,-506.46468501,0.00038901,14]
[354568056,1740577847707,-500.0,0.00038901,14]
[354568057,1740577847716,-2632.15,0.00038901,14]
[354568058,1740577847725,-500.0,0.00038901,14]
[354568059,1740577847735,-10651.32,0.00038901,14]
[354568060,1740577847744,-839.0,0.00038901,14]
[354568061,1740577847754,-500.0,0.00038901,14]
[354568062,1740577847763,-846.37,0.00038901,14]
[354568063,1740577847773,-700.95,0.00038901,14]
[354568064,1740577847785,-908.08,0.00038901,14]
[354568065,1740577847794,-3314.37,0.00038901,14]
[354568066,1740577847804,-500.0,0.00038901,14]
[354568067,1740577847814,-810.55,0.00038901,14]
[354568068,1740577847823,-684.23,0.00038901,14]
[354568069,1740577847833,-469.06954765,0.00038901,14]
[354568070,1740577847843,-758.03,0.00038901,14]
[354568071,1740577847852,-1616.56,0.00038901,14]
[354568072,1740577847863,-1561.92,0.00038901,14]
[354568073,1740577847873,-502.93201453,0.00038901,14]
[354568074,1740577847882,-500.0,0.00038901,14]
[354568075,1740577847891,-4702.59,0.00038901,14]
[354568076,1740577847902,-1729.62,0.00038901,14]
[354568077,1740577847913,-548.15,0.00038901,14]
[354568078,1740577847923,-718.01,0.00038901,14]
[354568079,1740577847933,-500.0,0.00038901,14]
[354568080,1740577847943,-564.41,0.00038901,14]
[354568081,1740577847956,-500.0,0.00038901,14]
[354568082,1740577847965,-658.16,0.00038901,14]
[354568083,1740577847974,-1453.01,0.00038901,14]
[354568084,1740577847984,-4330.92,0.00038901,14]
[354568085,1740577847994,-508.03856528,0.00038901,14]
[354568086,1740577848003,-1268.8,0.00038901,14]
[354568087,1740577848012,-1276.19,0.00038901,14]
[354568088,1740577848022,-2279.27,0.00038901,14]
[354568089,1740577848032,-1730.63,0.00038901,14]
[354568090,1740577848041,-500.0,0.00038901,14]
[354568091,1740577848051,-500.0,0.00038901,14]
[354568092,1740577848061,-715.74,0.00038901,14]
[354568093,1740577848070,-500.0,0.00038901,14]
[354568094,1740577848080,-3971.48,0.00038901,14]
[354568095,1740577848090,-500.0,0.00038901,14]
[354568096,1740577848101,-1278.34,0.00038901,14]
[354568097,1740577848111,-500.0,0.00038901,14]
[354568098,1740577848121,-151.0517042,0.00038902,14]
[354568099,1740577848131,-1109.77,0.00038902,14]
[354568100,1740577848141,-500.0,0.00038902,14]
[354568101,1740577848151,-855.27,0.00038902,14]
[354568102,1740577848160,-500.0,0.00038902,14]
[354568103,1740577848170,-1712.91,0.00038902,14]
[354568104,1740577848180,-1012.46,0.00038902,14]
[354568105,1740577848190,-500.0,0.00038902,14]
[354568106,1740577848199,-1563.92,0.00038902,14]
[354568107,1740577848209,-943.3,0.00038902,14]
[354568108,1740577848220,-577.65,0.00038902,14]
[354568109,1740577848230,-939.4,0.00038902,14]
[354568110,1740577848239,-1267.61,0.00038902,14]
[354568111,1740577848250,-578.32,0.00038902,14]
[354568112,1740577848260,-676.6,0.00038902,14]
[354568113,1740577848270,-904.12,0.00038902,14]
[354568114,1740577848281,-909.27,0.00038902,14]
[354568115,1740577848291,-679.06,0.00038902,14]
[354568116,1740577848300,-500.0,0.00038902,14]
[354568117,1740577848310,-1198.5,0.00038902,14]
[354568118,1740577848319,-843.37,0.00038902,14]
[354568119,1740577848329,-608.61,0.00038902,14]
[354568120,1740577848338,-738.4,0.00038902,14]
[354568121,1740577848348,-1475.91,0.00038902,14]
[354568122,1740577848358,-1120.02,0.00038902,14]
[354568123,1740577848368,-2196.09,0.00038902,14]
[354568124,1740577848378,-1079.47,0.00038902,14]
[354568125,1740577848387,-589.93,0.00038902,14]
[354568126,1740577848397,-783.92,0.00038902,14]
[354568127,1740577848407,-1902.54,0.00038902,14]
[354568128,1740577848417,-699.89,0.00038902,14]
[354568129,1740577848426,-922.8,0.00038902,14]
[354568130,1740577848436,-500.0,0.00038902,14]
[354568131,1740577848446,-500.0,0.00038902,14]
[354568132,1740577848455,-500.0,0.00038902,14]
[354568133,1740577848464,-894.7,0.00038902,14]
[354568134,1740577848474,-500.0,0.00038902,14]
[354568135,1740577848483,-500.0,0.00038902,14]
[354568136,1740577848493,-517.79,0.00038902,14]
[354568137,1740577848502,-992.29,0.00038902,14]
[354568138,1740577848511,-500.0,0.00038902,15]
[354568139,1740577848521,-171.15230154,0.00038902,15]
[354568140,1740577848531,-500.0,0.00038902,15]
[354568141,1740577848540,-500.0,0.00038902,15]
[354568142,1740577848549,-500.0,0.00038902,15]
[354568143,1740577848559,-394.48655956,0.00038902,15]
[354568144,1740577848568,-500.0,0.00038902,15]
[354568145,1740577848578,-500.0,0.00038902,15]
[354568146,1740577848587,-500.0,0.00038902,15]
[354568147,1740577848597,-1024.53,0.00038902,14]
[354568148,1740577848606,-500.0,0.00038902,14]
[354568149,1740577848618,-1992.53,0.00038902,14]
[354568150,1740577848627,-837.94,0.00038902,14]
[354568151,1740577848637,-996.74,0.00038902,14]
[354568152,1740577848647,-1716.42,0.00038902,14]
[354568153,1740577848658,-1083.7,0.00038902,14]
[354568154,1740577848667,-500.0,0.00038902,14]
[354568155,1740577848677,-1427.01,0.00038902,14]
[354568156,1740577848687,-873.23,0.00038902,14]
[354568157,1740577848696,-1724.87,0.00038902,14]
[354568158,1740577848706,-1541.1,0.00038902,14]
[354568159,1740577848716,-853.86,0.00038902,14]
[354568160,1740577848725,-1657.8,0.00038902,14]
[354568161,1740577848735,-1177.76,0.00038902,14]
[354568162,1740577848744,-738.79,0.00038902,14]
[354568163,1740577848754,-837.42,0.00038902,14]
[354568164,1740577848764,-1146.25,0.00038902,14]
[354568165,1740577848779,-1277.44,0.00038902,14]
[354568166,1740577848789,-703.97,0.00038902,14]
[354568167,1740577848798,-2708.98,0.00038902,14]
[354568168,1740577848807,-3028.36,0.00038902,14]
[354568169,1740577848819,-1805.32,0.00038902,14]
[354568170,1740577848828,-500.0,0.00038902,14]
[354568171,1740577848838,-1102.48,0.00038902,7]
[354568172,1740577848849,-1567.51,0.00038902,14]
[354568173,1740577848858,-1014.94,0.00038902,14]
[354568174,1740577848869,-1959.78,0.00038902,14]
[354568175,1740577848878,-500.0,0.00038902,14]
[354568176,1740577848888,-790.21,0.00038902,14]
[354568177,1740577848898,-500.0,0.00038902,14]
[354568178,1740577848907,-2008.07,0.00038902,14]
[354568179,1740577848917,-2154.4,0.00038902,14]
[354568180,1740577848930,-2656.79,0.00038902,14]
[354568181,1740577848941,-2642.81,0.00038902,14]
[354568182,1740577848950,-2078.28,0.00038902,2]
[354568183,1740577848960,-740.95,0.00038902,14]
[354568184,1740577848970,-2542.35,0.00038902,14]
[354568185,1740577848980,-3356.39,0.00038902,14]
[354568186,1740577848990,-1029.43,0.00038902,14]
[354568187,1740577849000,-2197.92,0.00038902,14]
[354568188,1740577849009,-500.0,0.00038902,14]
[354568189,1740577849019,-500.0,0.00038902,14]
[354568190,1740577849028,-2782.04,0.00038902,14]
[354568191,1740577849037,-3480.26,0.00038902,14]
[354568192,1740577849047,-9064.03,0.00038902,14]
[354568193,1740577849057,-1790.25,0.00038902,14]
[354568194,1740577849066,-11996.38,0.00038902,14]
[354568195,1740577849076,-867.47,0.00038902,7]
[354568196,1740577849085,-7204.63,0.00038902,14]
[354568197,1740577849095,-1439.36,0.00038902,14]
[354568198,1740577849104,-1878.05,0.00038902,14]
[354568199,1740577849116,-2514.2,0.00038902,14]
[354568200,1740577849127,-10590.07,0.00038902,14]
[354568201,1740577849136,-7878.89,0.00038902,14]
[354568202,1740577849146,-520.90509087,0.00038902,14]
[354568203,1740577849156,-2226.1,0.00038902,14]
[354568204,1740577849166,-963.01,0.00038902,14]
[354568205,1740577849176,-1335.47,0.00038902,14]
[354568206,1740577849185,-4068.29,0.00038902,14]
[354568207,1740577849196,-1524.81,0.00038902,14]
[354568208,1740577849205,-3119.68,0.00038902,14]
[354568209,1740577849217,-1042.94,0.00038902,14]
[354568210,1740577849226,-1414.93,0.00038902,14]
[354568211,1740577849236,-4810.19,0.00038902,14]
[354568212,1740577849246,-962.82,0.00038902,14]
[354568213,1740577849256,-500.0,0.00038902,14]
[354568214,1740577849266,-3278.03,0.00038902,14]
[354568215,1740577849276,-2165.39,0.00038902,14]
[354568216,1740577849285,-500.0,0.00038902,14]
[354568217,1740577849295,-3365.18,0.00038902,14]
[354568218,1740577849304,-2946.79,0.00038902,14]
[354568219,1740577849315,-1224.1,0.00038902,14]
[354568220,1740577849325,-2232.04,0.00038902,14]
[354568221,1740577849334,-500.0,0.00038902,14]
[354568222,1740577849344,-500.0,0.00038902,14]
[354568223,1740577849354,-2616.03,0.00038902,14]
[354568224,1740577849363,-1658.36,0.00038902,14]
[354568225,1740577849373,-3658.55,0.00038902,14]
[354568226,1740577849382,-1516.09,0.00038902,14]
[354568227,1740577849391,-500.0,0.00038902,14]
[354568228,1740577849401,-781.58,0.00038902,14]
[354568229,1740577849411,-1606.71,0.00038902,14]
[354568230,1740577849421,-2312.99,0.00038902,14]
[354568231,1740577849431,-574.15,0.00038902,14]
[354568232,1740577849440,-500.0,0.00038902,14]
[354568233,1740577849450,-2047.04,0.00038902,14]
[354568234,1740577849460,-2467.14,0.00038902,14]
[354568235,1740577849470,-2266.99,0.00038902,14]
[354568236,1740577849479,-423.69326434,0.00038902,2]
[354568237,1740577849489,-1312.8,0.00038903,14]
[354568238,1740577849499,-1129.28,0.00038903,14]
[354568239,1740577849508,-500.0,0.00038903,14]
[354568240,1740577849518,-579.56,0.00038903,14]
[354568241,1740577849527,-777.13,0.00038903,14]
[354568242,1740577849536,-500.0,0.00038903,14]
[354568243,1740577849546,-500.0,0.00038903,14]
[354568244,1740577849555,-748.27,0.00038903,14]
[354568245,1740577849565,-508.29,0.00038903,14]
[354568246,1740577849575,-560.37,0.00038903,14]
[354568247,1740577849585,-686.33,0.00038903,14]
[354568248,1740577849594,-500.0,0.00038903,14]
[354568249,1740577849603,-500.0,0.00038903,14]
[354568250,1740577849614,-500.0,0.00038903,14]
[354568251,1740577849624,-625.4,0.00038903,14]
[354568252,1740577849704,-500.0,0.00038903,14]
[354568253,1740577849714,-657.12,0.00038903,14]
[354568254,1740577849724,-798.41,0.00038903,14]
[354568255,1740577849733,-702.9,0.00038903,14]
[354568256,1740577849743,-656.36,0.00038903,14]
[354568257,1740577849752,-500.0,0.00038903,14]
[354568258,1740577849761,-500.0,0.00038903,14]
[354568259,1740577849772,-500.0,0.00038903,14]
[354568260,1740577849784,-255.57723115,0.00038903,14]
[354568261,1740577849794,-500.0,0.00038903,14]
[354568262,1740577849804,-500.0,0.00038903,14]
[354568263,1740577849814,-739.71,0.00038903,14]
[354568264,1740577849823,-500.0,0.00038903,14]
[354568265,1740577849833,-652.49,0.00038903,14]
[354568266,1740577849842,-1187.38,0.00038903,14]
[354568267,1740577849852,-500.0,0.00038903,14]
[354568268,1740577849865,-500.0,0.00038903,14]
[354568269,1740577849876,-1152.89,0.00038903,14]
[354568270,1740577849885,-500.0,0.00038903,14]
[354568271,1740577849895,-500.0,0.00038903,14]
[354568272,1740577849904,-500.0,0.00038903,14]
[354568273,1740577849913,-500.0,0.00038903,14]
[354568274,1740577849922,-500.0,0.00038903,14]
[354568275,1740577849932,-500.0,0.00038903,14]
[354568276,1740577849941,-519.1,0.00038903,14]
[354568277,1740577849952,-500.0,0.00038903,14]
[354568278,1740577849961,-500.0,0.00038903,14]
[354568279,1740577849970,-1000.36,0.00038903,14]
[354568280,1740577849980,-500.0,0.00038903,14]
[354568281,1740577849989,-1053.89,0.00038903,14]
[354568282,1740577849999,-500.0,0.00038903,14]
[354568283,1740577850008,-500.0,0.00038903,14]
[354568284,1740577850018,-855.35,0.00038903,14]
[354568285,1740577850027,-500.0,0.00038903,14]
[354568286,1740577850037,-1230.63,0.00038903,14]
[354568287,1740577850046,-713.14,0.00038903,14]
[354568288,1740577850055,-1310.18,0.00038903,14]
[354568289,1740577850065,-500.0,0.00038903,14]
[354568290,1740577850075,-500.0,0.00038903,14]
[354568291,1740577850084,-1037.5,0.00038903,14]
[354568292,1740577850093,-525.66,0.00038903,14]
[354568293,1740577850103,-750.54,0.00038903,14]
[354568294,1740577850114,-644.33,0.00038903,14]
[354568295,1740577850125,-500.0,0.00038903,14]
[354568296,1740577850135,-720.23,0.00038903,14]
[354568297,1740577850144,-1469.38,0.00038903,14]
[354568298,1740577850153,-500.0,0.00038903,14]
[354568299,1740577850163,-676.4,0.00038903,14]
[354568300,1740577850172,-552.22,0.00038903,14]
[354568301,1740577850182,-583.07,0.00038903,14]
[354568302,1740577850192,-819.23,0.00038903,14]
[354568303,1740577850200,-1594.23,0.00038903,14]
[354568304,1740577850209,-1290.54,0.00038903,14]
[354568305,1740577850218,-594.32109018,0.00038903,14]
[354568306,1740577850227,-628.18,0.00038903,14]
[354568307,1740577850236,-2041.57,0.00038903,14]
[354568308,1740577850245,-500.0,0.00038903,14]
[354568309,1740577850254,-500.0,0.00038903,14]
[354568310,1740577850263,-1272.67,0.00038903,14]
[354568311,1740577850273,-1295.92,0.00038903,14]
[354568312,1740577850283,-530.49,0.00038903,14]
[354568313,1740577850293,-972.66,0.00038903,14]
[354568314,1740577850303,-816.62,0.00038903,14]
[354568315,1740577850313,-1266.49,0.00038903,14]
[354568316,1740577850323,-1144.84,0.00038903,14]
[354568317,1740577850333,-557.37,0.00038903,14]
[354568318,1740577850343,-1296.84,0.00038903,14]
[354568319,1740577850352,-500.0,0.00038903,14]
[354568320,1740577850363,-2093.77,0.00038903,14]
[354568321,1740577850373,-513.61,0.00038903,14]
[354568322,1740577850382,-500.0,0.00038903,14]
[354568323,1740577850391,-882.04,0.00038903,14]
[354568324,1740577850401,-709.78,0.00038903,14]
[354568325,1740577850410,-500.0,0.00038903,14]
[354568326,1740577850420,-563.86,0.00038903,14]
[354568327,1740577850430,-500.0,0.00038903,14]
[354568328,1740577850439,-1813.28,0.00038903,14]
[354568329,1740577850448,-500.0,0.00038903,14]
[354568330,1740577850458,-793.37,0.00038903,14]
[354568331,1740577850467,-500.0,0.00038903,14]
[354568332,1740577850476,-2647.49,0.00038903,14]
[354568333,1740577850486,-500.0,0.00038903,14]
[354568334,1740577850495,-1324.4,0.00038903,14]
[354568335,1740577850505,-500.0,0.00038903,14]
[354568336,1740577850514,-500.0,0.00038903,14]
[354568337,1740577850524,-1361.16,0.00038903,14]
[354568338,1740577850533,-1819.24,0.00038903,14]
[354568339,1740577850542,-500.0,0.00038903,14]
[354568340,1740577850552,-1247.26,0.00038903,14]
[354568341,1740577850561,-706.59,0.00038903,14]
[354568342,1740577850571,-872.61,0.00038903,14]
[354568343,1740577850580,-527.21442775,0.00038903,14]
[354568344,1740577850590,-2051.37,0.00038903,14]
[354568345,1740577850599,-443.96818186,0.00038903,14]
[354568346,1740577850608,-500.0,0.00038903,14]
[354568347,1740577850619,-1004.19,0.00038903,14]
[354568348,1740577850628,-500.0,0.00038903,14]
[354568349,1740577850638,-1448.97,0.00038903,14]
[354568350,1740577850647,-1383.17,0.00038903,14]
[354568351,1740577850656,-790.09,0.00038903,14]
[354568352,1740577850666,-1696.99,0.00038903,14]
[354568353,1740577850676,-500.0,0.00038903,14]
[354568354,1740577850685,-632.7,0.00038903,14]
[354568355,1740577850695,-970.15,0.00038903,14]
[354568356,1740577850705,-1881.93,0.00038903,14]
[354568357,1740577850714,-1945.87,0.00038903,14]
[354568358,1740577850724,-1200.84,0.00038903,14]
[354568359,1740577850733,-500.0,0.00038903,14]
[354568360,1740577850743,-1380.05,0.00038903,14]
[354568361,1740577850753,-1222.32,0.00038903,14]
[354568362,1740577850762,-1676.7,0.00038903,14]
[354568363,1740577850777,-500.0,0.00038903,14]
[354568364,1740577850787,-500.0,0.00038903,14]
[354568365,1740577850796,-508.44812438,0.00038903,14]
[354568366,1740577850806,-1391.83,0.00038903,14]
[354568367,1740577850816,-500.0,0.00038903,14]
[354568368,1740577850826,-1978.98,0.00038903,14]
[354568369,1740577850835,-590.18,0.00038903,14]
[354568370,1740577850844,-1224.14,0.00038903,14]
[354568371,1740577850854,-500.0,0.00038903,14]
[354568372,1740577850869,-1700.34,0.00038903,14]
[354568373,1740577850878,-1065.08,0.00038903,14]
[354568374,1740577850888,-1250.82,0.00038903,14]
[354568375,1740577850897,-514.23322089,0.00038903,14]
[354568376,1740577850907,-990.24,0.00038903,14]
[354568377,1740577850916,-1603.67,0.00038903,14]
[354568378,1740577850925,-500.0,0.00038903,14]
[354568379,1740577850935,-500.0,0.00038903,14]
[354568380,1740577850944,-1249.22,0.00038903,14]
[354568381,1740577850954,-1019.67,0.00038903,14]
[354568382,1740577850963,-500.0,0.00038903,14]
[354568383,1740577850973,-598.56,0.00038903,14]
[354568384,1740577850982,-737.47,0.00038903,14]
[354568385,1740577850992,-579.27,0.00038903,14]
[354568386,1740577851001,-2303.31,0.00038903,14]
[354568387,1740577851010,-1366.67,0.00038903,14]
[354568388,1740577851020,-500.0,0.00038903,14]
[354568389,1740577851030,-500.0,0.00038903,14]
[354568390,1740577851039,-1658.66,0.00038903,14]
[354568391,1740577851048,-281.30543203,0.00038903,14]
[354568392,1740577851058,-500.0,0.00038903,14]
[354568393,1740577851067,-794.0,0.00038903,14]
[354568394,1740577851077,-500.0,0.00038903,14]
[354568395,1740577851087,-500.0,0.00038903,14]
[354568396,1740577851097,-1593.92,0.00038903,14]
[354568397,1740577851107,-930.67,0.00038903,14]
[354568398,1740577851120,-500.0,0.00038903,14]
[354568399,1740577851129,-500.0,0.00038903,14]
[354568400,1740577851139,-914.28,0.00038903,14]
[354568401,1740577851149,-2032.83,0.00038903,14]
[354568402,1740577851159,-546.07564109,0.00038903,14]
[354568403,1740577851169,-1509.21,0.00038903,14]
[354568404,1740577851178,-556.78,0.00038903,14]
[354568405,1740577851188,-651.66,0.00038903,14]
[354568406,1740577851198,-500.0,0.00038903,14]
[354568407,1740577851208,-2067.47,0.00038903,14]
[354568408,1740577851218,-500.0,0.00038903,14]
[354568409,1740577851228,-500.0,0.00038903,14]
[354568410,1740577851237,-931.17,0.00038903,14]
[354568411,1740577851246,-796.36,0.00038903,14]
[354568412,1740577851255,-500.0,0.00038903,14]
[354568413,1740577851265,-878.94,0.00038903,14]
[354568414,1740577851274,-2317.26,0.00038903,14]
[354568415,1740577851284,-811.32,0.00038903,14]
[354568416,1740577851293,-718.91,0.00038903,14]